Cogmind - Beta 15 @@@ ROGUE MODE // 2025.05.13 @ 17:22:22 Player: actioninja Result: Self-destructed Performance ------------- Evolutions (2) 1000 Regions Visited (5) 1000 Robots Destroyed (13) 65 Value Destroyed (462) 462 Prototype IDs (23) 460 Alien Tech Used (0) 0 Bonus (300) 300 TOTAL SCORE: 3287 Bonus ------- Aligned with FarCom 300 Cogmind --------- Core Integrity 424/550 Matter 300/300 Energy 160/160 System Corruption 0% Temperature Cool (0) Movement Walking (190) Ox1 Location -8/Materials Parts ------- > --- POWER (1) -------- Light Nuclear Core > --- PROPULSION (3) --- Carbon-fiber Leg > --- UTILITY (5) ------ Improved Heat Sink Small Storage Unit Hacking Suite Skeleton Box > --- WEAPON (2) ------- Pulse Rifle > --- INVENTORY (8) ---- Ion Engine Ion Engine Improved Sensor Array Particle Charger Reaction Control System Peak State ------------ > --- POWER ------------ Light Nuclear Core > --- PROPULSION ------- Carbon-fiber Leg Carbon-fiber Leg > --- UTILITY ---------- Improved Heat Sink Small Storage Unit Hacking Suite Hacking Suite Skeleton Box > --- WEAPON ----------- Shock Rifle Beamcaster > --- INVENTORY -------- Ion Engine Ion Engine Light Nuclear Core Improved Sensor Array Pulse Rifle [Rating: 34] Favorites ----------- Power Light Nuclear Core Engine Ion Engine Power Core Light Nuclear Core Propulsion Carbon-fiber Leg Treads Light Treads Leg Carbon-fiber Leg Utility Small Storage Unit Device Improved Heat Sink Storage Small Storage Unit Hackware Hacking Suite Weapon Shock Rifle Energy Gun Shock Rifle Ballistic Gun Light Assault Rifle Build | -11 -10 -10 -10 -9 -8 ------- Run | Yrd Mat Min Exi Min Mat Slots Evolved 4 | . . . . . 4 Power . | . . . . . . Propulsion 1 | . . . . . 1 Utility 3 | . . . . . 3 Weapon . | . . . . . . Parts Attached 18 | 6 . 8 . . 4 Power 3 | 1 . 1 . . 1 Engine 1 | 1 . . . . . Core 2 | . . 1 . . 1 Reactor . | . . . . . . Propulsion 4 | 2 . 2 . . . Treads 2 | 2 . . . . . Leg 2 | . . 2 . . . Wheel . | . . . . . . Hover . | . . . . . . Flight . | . . . . . . Utility 6 | 1 . 2 . . 3 Device 3 | . . 2 . . 1 Storage 1 | 1 . . . . . Processor . | . . . . . . Hackware 2 | . . . . . 2 Protection . | . . . . . . Artifact . | . . . . . . Weapon 5 | 2 . 3 . . . Energy Gun 3 | . . 3 . . . Energy Cannon . | . . . . . . Ballistic Gun 2 | 2 . . . . . Ballistic Cannon . | . . . . . . Launcher . | . . . . . . Special Weapon . | . . . . . . Impact Weapon . | . . . . . . Slashing Weapon . | . . . . . . Piercing Weapon . | . . . . . . Special Melee Weapon . | . . . . . . Unidentified Prototypes . | . . . . . . Parts Lost 5 | . . . . . 5 Power 1 | . . . . . 1 Propulsion 1 | . . . . . 1 Utility 1 | . . . . . 1 Weapon 2 | . . . . . 2 Highest Loss Streak 3 | . . . . . 3 To Critical Strikes . | . . . . . . Average Backups 5 | . 1 5 8 8 5 Power 3 | . 1 3 3 3 2 Propulsion . | . . . . . . Utility 2 | . . 1 3 3 2 Weapon . | . . . 1 1 . Tool/Special . | . . . . . . Unused Backups 6 | . . . . . 6 Power 3 | . . . . . 3 Propulsion . | . . . . . . Utility 3 | . . . . . 3 Weapon . | . . . . . . Tool/Special . | . . . . . . Average Slot Usage (%) 90 | . 85 90 100 100 74 Engine 4 | . 14 12 . . . Core 8 | . . 1 14 14 8 Treads 8 | . 28 24 . . . Leg 15 | . . 3 28 28 10 Device 11 | . . 5 14 14 18 Storage 12 | . 14 14 14 14 9 Hackware 2 | . . . . . 10 Energy Gun 18 | . . 10 28 28 17 Ballistic Gun 6 | . 28 17 . . . Peak Build Rating 34 | 6 6 22 23 23 34 Average Rating 18 | 4 6 10 22 23 27 On Entrance 13 | . 6 6 22 23 23 Naked Turns . | . . . . . . Heaviest Build 21 | 12 12 19 19 19 21 Greatest Support 40 | 40 40 40 30 30 30 Greatest Overweight (x) 3 | 3 . 1 . . 1 Average Overweight (x) . | . . . . . . Largest Inventory Capacity 8 | 8 8 8 8 8 8 Average Capacity 7 | 7 8 8 8 8 8 Most Carried 8 | 1 2 8 8 8 7 Average Carried 5 | . 1 5 7 8 5 Final Capacity 8 | 8 8 8 8 8 8 Final Carried 8 | 1 2 8 8 8 5 Class Distribution -------------------- 65% | Scavenger-Mutant 34% | Mutant Dominant Class ---------------- Mutant | -10/Materials Mutant | -10/Mines Scavenger-Mutant | -10/Exiles Scavenger-Mutant | -9/Mines Scavenger-Mutant | -8/Materials Resources | -11 -10 -10 -10 -9 -8 ----------- Run | Yrd Mat Min Exi Min Mat Matter Collected 411 | 193 19 109 . . 90 Remotely . | . . . . . . Salvage Created 587 | . 19 349 . . 219 Parts 28 | . 4 21 . . 3 Haulers Intercepted . | . . . . . . Recyclers Shooed . | . . . . . . Parts Field Recycled . | . . . . . . Retrieved Matter . | . . . . . . Parts Self-Destructed . | . . . . . . Prevented . | . . . . . . Kills | -11 -10 -10 -10 -9 -8 ------- Run | Yrd Mat Min Exi Min Mat Combat Hostiles Destroyed 10 | . . 7 . . 3 Guns 9 | . . 7 . . 2 Classes Destroyed 5 | . 1 2 . . 2 Recycler 1 | . . 1 . . . Operator 1 | . 1 . . . . Watcher 1 | . . . . . 1 Grunt 9 | . . 7 . . 2 Duelist 1 | . . . . . 1 Best Kill Streak 3 | . 1 3 . . 2 Combat Bots Only 3 | . . 3 . . 2 Max Kills in Single Turn 1 | . 1 1 . . 1 Gunslinging . | . . . . . . Exploded . | . . . . . . Melee . | . . . . . . Uniques/NPCs Destroyed . | . . . . . . Combat | -11 -10 -10 -10 -9 -8 -------- Run | Yrd Mat Min Exi Min Mat Hostile Shots Fired 93 | . 21 41 . . 31 Missed 27 | . 7 10 . . 10 Hits 66 | . 14 31 . . 21 Melee 7 | . . . . . 7 Projectile 59 | . 14 31 . . 14 Critical Strikes 1 | . . . . . 1 Damage Taken 1071 | . 121 431 . . 519 Core 263 | . 29 108 . . 126 Absorbed by Shields . | . . . . . . Core Remaining (%) 72 | 100 . . . 45 . Volleys Fired 38 | . 4 19 . . 15 Largest 2 | . 2 2 . . 2 Hottest 125 | . 40 113 . . 125 Shots Fired 73 | . 8 38 . . 27 Gun 73 | . 8 38 . . 27 Cannon . | . . . . . . Launcher . | . . . . . . Special . | . . . . . . Kinetic 36 | . 8 28 . . . Thermal 17 | . . 5 . . 12 Explosive . | . . . . . . Electromagnetic 20 | . . 5 . . 15 Robot Hit Streak 18 | . 2 15 . . 18 Robot Miss Streak 2 | . 2 2 . . 1 Penetration Max . | . . . . . . Secondary Targets 1 | . . 1 . . . Max Gunslinging Chain 1 | . . 1 . . . Shots Hit Robots 54 | . 4 30 . . 20 Core Hits 28 | . 3 17 . . 8 Critical Kills . | . . . . . . Critical Parts Destroyed . | . . . . . . Critical Strikes . | . . . . . . Melee Attacks . | . . . . . . Impact . | . . . . . . Slashing . | . . . . . . Piercing . | . . . . . . Sneak Attacks . | . . . . . . Combat Hostiles . | . . . . . . Follow-up Attacks . | . . . . . . Damage Inflicted 744 | . 37 318 . . 389 Guns 696 | . 32 315 . . 349 Cannons . | . . . . . . Explosions 38 | . . . . . 38 Melee . | . . . . . . Ramming 10 | . 5 3 . . 2 Kinetic 204 | . 32 172 . . . Thermal 246 | . . 52 . . 194 Explosive . | . . . . . . Electromagnetic 284 | . . 91 . . 193 Impact . | . . . . . . Slashing . | . . . . . . Piercing . | . . . . . . Highest Corruption . | . . . . . . Average Corruption . | . . . . . . Corruption Purged . | . . . . . . Corruption Blocked . | . . . . . . Overload Shots . | . . . . . . Overflow Damage 25 | . . . . . 25 Projectiles . | . . . . . . Explosions 25 | . . . . . 25 Melee . | . . . . . . Knockbacks . | . . . . . . Impact . | . . . . . . Kinetic . | . . . . . . Secondary . | . . . . . . Self-Inflicted Damage 48 | . . . . . 48 Shots 1 | . . . . . 1 Rammed 2 | . 1 1 . . . Targets Rammed 3 | . 1 1 . . 1 Kicked 1 | . . . . . 1 Crushed . | . . . . . . Highest Temperature 66 | . . 54 . . 66 Average Temperature 21 | . . 18 . . 25 Received Heat Transfer 336 | . 12 234 . . 90 Siege Activations . | . . . . . . Martial Activations . | . . . . . . Shielding Activations . | . . . . . . Robots Disrupted . | . . . . . . Combat Hostiles . | . . . . . . Robots Corrupted 1 | . . . . . 1 Combat Hostiles 1 | . . . . . 1 Parts Fried . | . . . . . . Impact Corruptions . | . . . . . . Robots Melted . | . . . . . . Combat Hostiles . | . . . . . . Parts Melted . | . . . . . . Heat Transferred 457 | . . 111 . . 346 Parts Sabotaged . | . . . . . . Parts Stolen . | . . . . . . Parts Stripped . | . . . . . . Power Chain Reactions 1 | . . . . . 1 Alert | -11 -10 -10 -10 -9 -8 ------- Run | Yrd Mat Min Exi Min Mat Maximum Alert Level . | . . . . . . Low Security (%) 100 | 100 100 100 . 100 100 Level 1 . | . . . . . . Level 2 . | . . . . . . Level 3 . | . . . . . . Level 4 . | . . . . . . Level 5 . | . . . . . . High Security . | . . . . . . Max Security . | . . . . . . Peak Influence 85 | . 5 85 . . 64 Initial . | . . . . . . Average 15 | . . 23 . . 11 Influence Increases 340 | . 5 190 . . 145 Destroy 0b10 Robot/C 200 | . . 140 . . 60 Destroy 0b10 Robot/NC 15 | . 5 5 . . 5 Destroy Leader 42 | . . 30 . . 12 Successful Hack 4 | . . . . . 4 Disable Machine 15 | . . . . . 15 Destroy Structure 4 | . . . . . 4 Lose Combat Pursuer 60 | . . 15 . . 45 Influence Decreases 340 | . 5 179 11 . 145 Entered New Map 11 | . . . 11 . . Time Decay 282 | . 5 179 . . 98 Lost Part 47 | . . . . . 47 Squads Dispatched 4 | . 2 1 . . 1 Investigation 1 | . . 1 . . . Extermination . | . . . . . . Reinforcement 3 | . 2 . . . 1 Assault . | . . . . . . Garrison . | . . . . . . Intercept . | . . . . . . Searches Triggered . | . . . . . . Construction Impeded . | . . . . . . Haulers Reinforced . | . . . . . . Active Scanning Responses . | . . . . . . Cargo Convoy Interrupts . | . . . . . . Stealth | -11 -10 -10 -10 -9 -8 --------- Run | Yrd Mat Min Exi Min Mat Distress Signals 2 | . 2 . . . . Communications Jammed . | . . . . . . Distress Signals . | . . . . . . Times Spotted 28 | . 10 8 . . 10 Peak Tracking Total 7 | . 7 4 . . 3 Tactical Retreats 2 | . . 1 . . 1 Traps | -11 -10 -10 -10 -9 -8 ------- Run | Yrd Mat Min Exi Min Mat Traps Triggered . | . . . . . . Indirectly . | . . . . . . Trap Hack Attempts . | . . . . . . Triggered . | . . . . . . Disarmed . | . . . . . . Reprogrammed . | . . . . . . Reused . | . . . . . . Traps Extracted . | . . . . . . Installed . | . . . . . . Triggered . | . . . . . . Machines | -11 -10 -10 -10 -9 -8 ---------- Run | Yrd Mat Min Exi Min Mat Machines Disabled 1 | . . . . . 1 Max in Single Turn 1 | . . . . . 1 Machines Repaired . | . . . . . . Machines Dismantled . | . . . . . . Machines Sabotaged . | . . . . . . Overloaded Fab Kills . | . . . . . . Hacking | -11 -10 -10 -10 -9 -8 --------- Run | Yrd Mat Min Exi Min Mat Machines Accessed 7 | . . 1 4 . 2 Terminals 1 | . . . . . 1 Fabricators . | . . . . . . Repair Stations . | . . . . . . Recycling Units . | . . . . . . Scanalyzers . | . . . . . . Garrison Access 1 | . . . . . 1 Total Hacks 18 | . . 1 14 . 3 Successful 17 | . . 1 14 . 2 Failed 1 | . . . . . 1 Catastrophic . | . . . . . . Database Lockouts . | . . . . . . Manual 1 | . . . 1 . . Terminals 1 | . . . . . 1 Fabricators . | . . . . . . Repair Stations . | . . . . . . Recycling Units . | . . . . . . Scanalyzers . | . . . . . . Garrison Access 2 | . . . . . 2 Terminal Hacks 16 | . . 1 14 . 1 Record 13 | . . . 13 . . Open Door 1 | . . 1 . . . Hauler Manifests 1 | . . . . . 1 Proto ID Catalog 1 | . . . 1 . . Fabricator Hacks . | . . . . . . Repair Station Hacks . | . . . . . . Recycling Unit Hacks . | . . . . . . Scanalyzer . | . . . . . . Garrison Access Hacks 1 | . . . . . 1 Unlock Access 1 | . . . . . 1 Unauthorized Hacks . | . . . . . . Terminals . | . . . . . . Fabricators . | . . . . . . Repair Stations . | . . . . . . Recycling Units . | . . . . . . Scanalyzers . | . . . . . . Garrison Access . | . . . . . . Data Cores Recovered . | . . . . . . Used . | . . . . . . Hacking Detections 1 | . . . . . 1 Full Trace Events . | . . . . . . Feedback Events . | . . . . . . Feedback Blocked . | . . . . . . Robot Schematics Acquired . | . . . . . . Robots Built . | . . . . . . Authchips . | . . . . . . Time . | . . . . . . Total Robot Build Rating . | . . . . . . Part Schematics Acquired . | . . . . . . Parts Built . | . . . . . . Authchips . | . . . . . . Time . | . . . . . . Total Part Build Rating . | . . . . . . Parts Repaired . | . . . . . . Time . | . . . . . . Parts Recycled . | . . . . . . Recycled Matter . | . . . . . . Retrieved Matter . | . . . . . . Retrieved Components . | . . . . . . Parts Scanalyzed . | . . . . . . Part Schematics Acquired . | . . . . . . Parts Damaged . | . . . . . . Bothacking | -11 -10 -10 -10 -9 -8 ------------ Run | Yrd Mat Min Exi Min Mat Used RIF Installer . | . . . . . . Robots Hacked . | . . . . . . Non-combat . | . . . . . . Combat . | . . . . . . Robot Hacks Applied . | . . . . . . Relay Couplers Released . | . . . . . . Fabnet Peak Effective % . | . . . . . . Robots Rewired . | . . . . . . Allies Hacked . | . . . . . . Hacks Repelled . | . . . . . . Allies | -11 -10 -10 -10 -9 -8 -------- Run | Yrd Mat Min Exi Min Mat Total Allies . | . . . . . . Largest Group . | . . . . . . Highest-Rated Group . | . . . . . . Highest-Rated Ally . | . . . . . . Total Orders . | . . . . . . Ally Attacks . | . . . . . . Total Damage . | . . . . . . Kills . | . . . . . . Allies Corrupted . | . . . . . . Allies Melted . | . . . . . . Intel | -11 -10 -10 -10 -9 -8 ------- Run | Yrd Mat Min Exi Min Mat Active Infowar (turns) . | . . . . . . Robot Analysis Total . | . . . . . . Derelict Logs Recovered 2 | . . 2 . . . Drone Launches . | . . . . . . Drone Recoveries . | . . . . . . Exploration | -11 -10 -10 -10 -9 -8 ------------- Run | Yrd Mat Min Exi Min Mat Turns Passed 2319 | 94 122 656 868 60 519 Spaces Moved 1505 | 53 69 366 720 51 246 Core 21 | 21 . . . . . Treads 414 | 32 69 313 . . . Legs 1070 | . . 53 720 51 246 Wheels . | . . . . . . Hover . | . . . . . . Flight . | . . . . . . Fastest Speed 50 | 50 160 120 120 120 120 Average Speed 140 | 159 160 154 120 120 174 Slowest Speed 200 | 200 160 190 120 120 190 Overloaded Moves . | . . . . . . Propulsion Burnouts . | . . . . . . Robots Hopped . | . . . . . . Potential Cave-ins . | . . . . . . Cave-ins Triggered . | . . . . . . Exploration Rate (%) 33 | 6 20 51 93 13 19 Regions Visited 5 Branch Regions 3 Pre-discovered Areas 1 | . . . 1 . . Known Exits Taken . | . . . . . . Unknown Exits Taken 5 | 1 1 1 1 1 . Scrap Searched 1 | . . 1 . . . Spaces Dug . | . . . . . . Terrain Destroyed 2 | . . . . . 2 Melee . | . . . . . . Projectile . | . . . . . . AOE 2 | . . . . . 2 Terrain Rammed . | . . . . . . Walls Destroyed . | . . . . . . Machines Disabled . | . . . . . . Actions | -11 -10 -10 -10 -9 -8 --------- Run | Yrd Mat Min Exi Min Mat Total 1637 | 59 74 421 724 50 309 Wait 50 | . . 14 . . 36 Move 1500 | 52 68 365 719 50 246 Hop . | . . . . . . Pick Up 16 | 1 1 9 1 . 4 Fast Attach 8 | 6 . 2 . . . Attach 7 | . . 1 . . 6 Detach . | . . . . . . Swap 5 | . . 5 . . . Drop 7 | . . 5 1 . 1 Fire 38 | . 4 19 . . 15 Melee . | . . . . . . Ram . | . . . . . . Kick 1 | . . . . . 1 Crush 2 | . 1 1 . . . Escape Stasis . | . . . . . . Rewire 3 | . . . 3 . . Trap . | . . . . . . Miscellaneous . | . . . . . . Route ------- -11/Scrapyard -10/Materials -10/Mines -10/Exiles (discovered 2 exits: [*Min x2]) -9/Mines -8/Materials (discovered 2 exits: Sto / Gar) History --------- Turn | Location | Event 21 | -11/Scrapyard | Discovered new exit (range 15) 95 | -11/Scrapyard | Entered Materials 169 | -10/Materials | Discovered new exit (range 13) 217 | -10/Materials | Entered Mines 305 | -10/Mines | Build established: Mutant 376 | -10/Mines | Core integrity fell below 50% 442 | -10/Mines | Learned Materials security intel 606 | -10/Mines | Met a Derelict shopkeep closing up shop 824 | -10/Mines | Found a Scrap Suit stashed away for nefarious purposes 862 | -10/Mines | Deemed a non-threat by the Exiles lab entrance 863 | -10/Mines | Discovered new exit (range 5) 873 | -10/Mines | Entered Exiles 914 | -10/Exiles | Met 8R-AWN 921 | -10/Exiles | Discovered new exit (range 15) 959 | -10/Exiles | Met EX-HEX 1049 | -10/Exiles | Met EX-DEC 1080 | -10/Exiles | Learned location of Zion (-6) 1103 | -10/Exiles | Build established: Scavenger-Mutant 1119 | -10/Exiles | Met EX-BIN 1143 | -10/Exiles | Aligned with FarCom system 1144 | -10/Exiles | Given EX-Vault access code 1180 | -10/Exiles | Opened EX-Vault 1304 | -10/Exiles | Warned to stay clear of 0b10 Research branches 1362 | -10/Exiles | Found Skeleton Box 1485 | -10/Exiles | Visited The Gauntlet 1726 | -10/Exiles | Discovered new exit (range 14) 1741 | -10/Exiles | Left Exiles lab with Skeleton Box 1741 | -10/Exiles | Entered Mines 1777 | -9/Mines | Discovered new exit (range 12) 1786 | -9/Mines | Met a Derelict bent on vengeance 1801 | -9/Mines | Entered Materials 1801 | -8/Materials | Evolved 4 slots: Propulsion x1, Utility x3 1802 | -8/Materials | Identified exit to Storage 1926 | -8/Materials | Lost 3 parts (1n1u1w) 2268 | -8/Materials | Identified exit to Garrison 2320 | -8/Materials | Self-destructed Last Messages --------------- 02262_ K-01 Serf cleans the Fusion Modulator. 02268_ Connecting with Garrison Access... >>Unlock Access door unlocked. 02268_ EXIT=UNLOCKED: GARRISON 02302_ W-25 Informer destroyed. 02304_ ALERT: Suspicious intruders detected, dispatching Specialist reinforcements to area. 02304_ Penetrated by Slug. 02304_ U-05 Engineer destroyed. 02309_ R-06 Scavenger collects Structural Scanner. 02312_ Slug penetrates Wall. 02312_ Shock Rifle destroyed. 02312_ R-06 Scavenger collects Welding Torch. 02314_ R-06 Scavenger collects Lgt. Ion Engine. 02316_ Slug penetrates R-06 Scavenger. 02318_ Kicked R-06 Scavenger. 02318_ Penetrated by Slug. 02318_ Terminal disabled. Map ----- +----------------------------------------------------+ | | | | | | | ?????????????????????????????????????????????????? | | ?????????????????????????????????????????????????? | | ?????????????????????????????????????????????????? | | ?????????????????????????????????????????????????? | | ?????????????????????????????????????????????????? | | ?????????????????????????????????????????????????? | | ?????????????????????????????????????????????????? | | ?????????????????????????????????????????????????? | | ?????????????????????????????????????????????????? | | ?????????????????????????????????????????????????? | | ??????????????????H??????????????????????????????? | | ?????????????????????????????????????????????????? | | ????????????????????????????????############?????? | | ????????????????????????????????# #?????? | | ????????????????????????????????# #?????? | | ????????????????????????????????# " ####### | | ????????????????????????????????# "G" | | ??????????????????????#?????????# ">" | | ????????????????# ????# ????????# ####### | | ????????????????# ###w###?????# # | | ????????????????# ####### # | | ????????????????# x *# | | ????????????????# @ x # | | ????????????????# # rr %% r # "T" | | ????????????????????# ##############l # | | ????????????????????## ##????????????# ####### | | ?????????????????????# ??????????????#g | | ?????????????????????# ??????????????# | | ?????????????????????# ??????????????# ! | | ?????????????????????# ??????????????# | | ?????????????????????# u??????????????# | | ?????????????????????# ??????????Y????# """ "" | | ?????????????????????# ???????????????? """ "" | | ?????????????????????+ ???????????????? """ "" | | ?????????????????????# ????????????????? | | ?????????????????????# ????????????????? | | ?????????????????????# ?????????????????? | | ???????????????????????????????????????????####### | | ???????????????????????????????????????????####### | | ???????????????????????????????????????????# | | ???????????????????????????????????????????# | | ???????????????????????????????????????????# """"" | | ???????????????????????????????????????????# """"" | | ???????????????????????????????????????????# """"" | | ???????????????????????????????????????????# """"" | | ???????????????????????????????????????????# " | | ???????????????????????????????????????# ??# | +----------------------------------------------------+ Best States ------------- Heat Dissipation 45 Energy Generation 14 Energy Capacity 250 Matter Stores 300 Matter Capacity 300 Sight Range 16 Terrain Scan Density 10 Evasion (%) 55 Recoil Reduction 2 Offensive Hacking 20 Item Schematics ----------------- None Robot Schematics ------------------ None Fabricated ------------ Nothing Repaired ---------- Nothing Alien Tech Used ----------------- None Achievements -------------- None Challenges ------------ None Game ------ Seed GrapheneSkeletonPenetrator Manual? 0 Play Time 00:16:11 Cumulative 7.1 hours Start 2025.05.13 @ 17:06:06 End 2025.05.13 @ 17:22:22 Sessions 1 Manual Loads 0 Difficulty Rogue Special Mode None Game No. 25 Rogue 25 Adventurer 0 Explorer 0 Win Type - Total 0 Types 0/0/0/0/0/0/0/0/0/0 Lore% 17 Gallery% 15 Achievement% 13 Wizard Run 0 Options --------- Layout 1 ASCII 0 Keyboard 0 Movement Numpad Keybinds 0 Fullscreen 2 Font 32/SmallcapsGlow Map View 50x35 Zoom Use 0% Tactical HUD 1 Map Filters NONE Filters NONE Steam 1 RUN: 334f173d-1be9-46c3-85c7-38e603fbcd74